fUSD/lending_fUSD_20251217
["ID","MTS","AMOUNT","RATE_DAILY","PERIOD"]
[398913036,1765987855818,-981.2946706,0.00039,2]
[398913037,1765987855832,-9742.24427862,0.00039,2]
[398913038,1765987855843,-1130.776072,0.00039,2]
[398913039,1765987855978,-2193.465,0.00014896,2]
[398913040,1765987855990,-97201.21346212,0.00014896,2]
[398913041,1765987856001,-6166.53497692,0.00014896,2]
[398913042,1765987856013,-10841.36545941,0.00014896,2]
[398913043,1765987856036,-15254.67579319,0.00014896,2]
[398913044,1765987856047,-1118.4173,0.00014896,2]
[398913045,1765987856058,-8733.6,0.00014896,2]
[398913046,1765987856070,-14604.9332826,0.00014896,2]
[398913047,1765987856214,-1580.11308,0.00014896,2]
[398913048,1765987856228,-602305.68164576,0.00014896,2]
[398913049,1765987856238,-2833.29861513,0.000159,2]
[398913050,1765987856247,-500.0,0.00020631,2]
[398913051,1765987856256,-500.0,0.00020632,2]
[398913052,1765987856268,-563.0,0.0003161,2]
[398913053,1765987856277,-563.0,0.0003461,2]
[398913054,1765987856287,-428.0,0.00036302,2]
[398913055,1765987856298,-452.0,0.00036439,2]
[398913056,1765987856307,-563.0,0.0003761,2]
[398913057,1765987856318,-81309.47411766,0.00039,2]
[398913058,1765987856336,-154096.48378552,0.00039,2]
[398913059,1765987856352,-875.0,0.00039,2]
[398913060,1765987863053,2500.0,0.0001749,120]
[398913061,1765987873993,2500.0,0.000221,120]
[398913062,1765987875134,5000.0,0.0001749,120]
[398913063,1765987875337,5000.0,0.00018377,120]
[398913069,1765988093322,1000.0,0.00023,120]
[398913070,1765988101846,1000.0,0.00023,120]
[398913071,1765988114786,1000.0,0.00023,120]
[398913072,1765988120358,1000.0,0.00023,120]
[398913073,1765988126226,1000.0,0.00023,120]
[398913074,1765988132304,1000.0,0.00023,120]
[398913075,1765988137379,1000.0,0.00023,120]
[398913076,1765988143530,266.0,0.00023,120]
[398913082,1765988297790,500.0,0.00015096,3]
[398913083,1765988298061,500.0,0.00015096,4]
[398913084,1765988298351,500.0,0.00015298,5]
[398913131,1765989032143,-200.0,0.00013789,2]
[398913132,1765989032153,-441.28142672,0.00013797,2]
[398913133,1765989032164,-112.57857328,0.00013797,2]
[398913134,1765989032174,-762.23942672,0.00013848,2]
[398913135,1765989032185,-945.29057328,0.00013848,2]
[398913136,1765989032194,-313.81250483,0.00013889,2]
[398913137,1765989032203,-300.0,0.00013989,2]
[398913138,1765989032213,-1200.0,0.00013989,2]
[398913139,1765989032222,-300.0,0.00013989,2]
[398913140,1765989032232,-300.0,0.00013989,2]
[398913141,1765989032242,-300.0,0.0001399,2]
[398913142,1765989032254,-23966.69343584,0.0001399,2]
[398913143,1765989032263,-300.0,0.00014119,2]
[398913144,1765989032272,-300.0,0.00014119,2]
[398913145,1765989032282,-300.0,0.00014119,2]
[398913146,1765989032291,-200.0,0.00014164,2]
[398913147,1765989032300,-223.14,0.00014226,2]
[398913148,1765989032310,-1000.0,0.00014229,2]
[398913149,1765989032319,-313.81250481,0.00014242,2]
[398913151,1765989032329,-10167.03388881,0.0001439,2]
[398913154,1765989032341,-105.95693451,0.0001439,2]
[398913156,1765989032351,-416.09097538,0.00014396,2]
[398913158,1765989032362,-143.18902462,0.00014396,2]
[398913160,1765989032371,-313.81250481,0.00014594,2]
[398913162,1765989032380,-1194.98379885,0.00014594,2]
[398913164,1765989032389,-150.0,0.00014595,2]
[398913166,1765989032398,-101842.999191,0.00014596,2]
[398913168,1765989032410,-20005.74962001,0.00014596,2]
[398913170,1765989032422,-864.08449454,0.00014596,2]
[398913172,1765989032434,-418.24853192,0.00014596,2]
[398913174,1765989032445,-1932.64807024,0.00014596,2]
[398913177,1765989032456,-518.32459592,0.00014596,2]
[398913179,1765989032468,-7211.0,0.00014596,2]
[398913181,1765989032479,-361.58427303,0.00014596,2]
[398913183,1765989032490,-1195.98280455,0.00014596,2]
[398913185,1765989032504,-899.86519061,0.00014596,2]
[398913419,1765989039297,-2890.27613519,0.00014596,2]
[398913420,1765989039313,-621859.23709299,0.00014596,2]
[398913421,1765989039322,-500.0,0.00014614,2]
[398913422,1765989039332,-500.0,0.00014614,2]
[398913423,1765989039342,-540.0,0.00014614,2]
[398913424,1765989039352,-500.0,0.00014614,2]
[398913425,1765989039361,-500.0,0.00014614,2]
[398913426,1765989039371,-500.0,0.00014614,2]
[398913427,1765989039380,-500.0,0.00014614,2]
[398913428,1765989039389,-533.7101719,0.00014614,2]
[398913429,1765989039399,-500.0,0.00014614,2]
[398913430,1765989039409,-500.0,0.00014614,2]
[398913431,1765989039419,-618.36681449,0.00014614,2]
[398913432,1765989039428,-528.56418442,0.00014614,2]
[398913433,1765989039438,-224186.29878824,0.00014615,2]
[398913434,1765989039448,-45167.0398,0.00014694,2]
[398913435,1765989039457,-2758.962,0.00014694,2]
[398913436,1765989039466,-176.504,0.00014694,2]
[398913437,1765989039476,-5218.08862734,0.00014694,2]
[398913438,1765989039485,-277.09474556,0.00014694,2]
[398913439,1765989039495,-500.0,0.00014695,2]
[398913440,1765989039504,-154.0,0.00014762,2]
[398913441,1765989039521,-151.0,0.00014786,2]
[398913442,1765989039532,-151.0,0.00014786,2]
[398913443,1765989039543,-151.0,0.00014786,2]
[398913444,1765989039553,-151.0,0.00014786,2]
[398913445,1765989039563,-151.0,0.00014786,2]
[398913446,1765989039573,-151.0,0.00014786,2]
[398913447,1765989039584,-151.0,0.00014786,2]
[398913448,1765989039593,-151.0,0.00014786,2]
[398913449,1765989039604,-151.0,0.00014786,2]
[398913450,1765989039618,-151.0,0.00014786,2]
[398913451,1765989039628,-151.0,0.00014786,2]
[398913452,1765989039637,-151.0,0.00014786,2]
[398913453,1765989039648,-151.0,0.00014786,2]
[398913454,1765989039659,-263.68804317,0.00014786,2]
[398913455,1765989039669,-500.0,0.00014794,2]
[398913456,1765989039678,-224.07666052,0.00014794,2]
[398913457,1765989039688,-500.0,0.00014794,2]
[398913458,1765989039697,-280.25160558,0.00014794,2]
[398913459,1765989039707,-493.15432385,0.00014794,2]
[398913460,1765989039716,-500.0,0.00014794,2]
[398913461,1765989039726,-468.97910059,0.00014794,2]
[398913462,1765989039736,-500.0,0.00014794,2]
[398913463,1765989039746,-500.0,0.00014794,2]
[398913464,1765989039755,-500.0,0.00014794,2]
[398913465,1765989039769,-500.0,0.00014794,2]
[398913466,1765989039778,-500.0,0.00014794,2]
[398913467,1765989039787,-500.0,0.00014794,2]
[398913468,1765989039797,-500.0,0.00014794,2]
[398913469,1765989039806,-500.0,0.00014794,2]
[398913470,1765989039815,-500.0,0.00014794,2]
[398913471,1765989039825,-500.0,0.00014794,2]
[398913472,1765989039834,-500.0,0.00014794,2]
[398913473,1765989039843,-500.0,0.00014794,2]
[398913474,1765989039852,-558.32,0.00014794,2]
[398913475,1765989039862,-1062.16,0.00014794,2]
[398913476,1765989039871,-500.0,0.00014794,2]
[398913477,1765989039880,-500.0,0.00014794,2]
[398913478,1765989039889,-500.14853871,0.00014794,2]
[398913479,1765989039898,-500.0,0.00014794,2]
[398913480,1765989039908,-500.0,0.00014794,2]
[398913481,1765989039918,-500.0,0.00014794,2]
[398913482,1765989039928,-515.02785711,0.00014794,2]
[398913483,1765989039938,-500.0,0.00014794,2]
[398913484,1765989039948,-500.0,0.00014794,2]
[398913485,1765989039957,-500.0,0.00014794,2]
[398913486,1765989039967,-500.0,0.00014794,2]
[398913487,1765989039976,-550.52788879,0.00014794,2]
[398913488,1765989039985,-500.0,0.00014794,2]
[398913489,1765989039996,-500.0,0.00014794,2]
[398913490,1765989040006,-500.0,0.00014794,2]
[398913491,1765989040017,-500.0,0.00014794,2]
[398913492,1765989040026,-500.0,0.00014794,2]
[398913493,1765989040035,-514.23721699,0.00014794,2]
[398913494,1765989040044,-500.0,0.00014794,2]
[398913495,1765989040053,-500.0,0.00014794,2]
[398913496,1765989040063,-468.57497061,0.00014794,2]
[398913498,1765989040072,-500.0,0.00014794,2]
[398913501,1765989040081,-500.0,0.00014794,2]
[398913504,1765989040095,-500.0,0.00014794,2]
[398913507,1765989040104,-500.0,0.00014794,2]
[398913510,1765989040114,-500.0,0.00014794,2]
[398913512,1765989040123,-500.0,0.00014794,2]
[398913514,1765989040132,-500.0,0.00014794,2]
[398913516,1765989040142,-392.85536899,0.00014794,2]
[398913518,1765989040151,-500.0,0.00014794,2]
[398913520,1765989040161,-286.90864955,0.00014794,2]
[398913522,1765989040170,-500.0,0.00014794,2]
[398913524,1765989040180,-500.0,0.00014794,2]
[398913526,1765989040190,-1000.0,0.00014796,2]
[398913528,1765989040200,-500.0,0.00014895,2]
[398913530,1765989040209,-500.0,0.00014895,2]
[398913532,1765989040219,-500.0,0.00014895,2]
[398913534,1765989040229,-5218.08862732,0.00014954,2]
[398913536,1765989040239,-20252.1545,0.00014997,2]
[398913538,1765989040249,-151.0,0.00014997,2]
[398913540,1765989040262,-20213.7134523,0.00015,2]
[398913542,1765989040272,-277.0947455,0.00015009,2]
[398913545,1765989040282,-223.14,0.00015016,2]
[398913547,1765989040292,-500.0,0.00015068,2]
[398913549,1765989040301,-1062.16,0.00015068,2]
[398913551,1765989040311,-500.0,0.00015096,2]
[398913553,1765989040320,-500.0,0.00015096,2]
[398913555,1765989040330,-500.0,0.00015096,2]
[398913557,1765989040339,-1408.53,0.00015096,2]
[398913559,1765989040349,-1408.53,0.00015096,2]
[398913561,1765989040359,-1408.53,0.00015096,2]
[398913562,1765989040368,-500.0,0.00015096,2]
[398913563,1765989040378,-500.0,0.00015096,2]
[398913564,1765989040389,-500.0,0.00015096,2]
[398913565,1765989040400,-500.0,0.00015096,2]
[398913566,1765989040410,-615.3449817,0.00015096,2]
[398913567,1765989040420,-5218.08862732,0.00015214,2]
[398913568,1765989040430,-250.0,0.00015232,2]
[398913569,1765989040440,-1000.0,0.00015296,2]
[398913570,1765989040451,-500.0,0.00015298,2]
[398913571,1765989040461,-1408.53,0.00015298,2]
[398913572,1765989040470,-500.0,0.00015298,2]
[398913573,1765989040480,-500.0,0.00015298,2]
[398913574,1765989040490,-277.0947455,0.00015324,2]
[398913575,1765989040501,-420.0,0.00015326,2]
[398913576,1765989040512,-420.0,0.00015326,2]
[398913577,1765989040527,-500.0,0.00015342,2]
[398913578,1765989040537,-1062.16,0.00015342,2]
[398913579,1765989040547,-920.68739626,0.00015379,2]
[398913580,1765989040556,-300.0,0.00015388,2]
[398913581,1765989040567,-1680.0,0.00015388,2]
[398913582,1765989040577,-5218.08862732,0.00015474,2]
[398913583,1765989040587,-500.0,0.00015616,2]
[398913584,1765989040598,-1062.16,0.00015616,2]
[398913585,1765989040607,-277.0947455,0.00015639,2]
[398913586,1765989040617,-255.0,0.00015719,2]
[398913587,1765989040627,-5218.08862732,0.00015734,2]
[398913588,1765989040637,-223.14,0.00015806,2]
[398913589,1765989040647,-1214.6368758,0.00015853,2]
[398913590,1765989040657,-500.0,0.0001589,2]
[398913591,1765989040666,-1062.16,0.0001589,2]
[398913592,1765989040676,-1888.86574347,0.000159,2]
[398913593,1765989040686,-1888.86574342,0.000159,2]
[398913594,1765989040695,-1888.86574342,0.000159,2]
[398913595,1765989040705,-1888.86574342,0.000159,2]
[398913596,1765989040715,-1888.86574342,0.000159,2]
[398913597,1765989040725,-151.3,0.000159,2]
[398913598,1765989040735,-151.04,0.000159,2]
[398913599,1765989040744,-166.66,0.00015907,2]
[398913600,1765989040754,-277.0947455,0.00015955,2]
[398913601,1765989040766,-5218.08862732,0.00015995,2]
[398913602,1765989040775,-1000.0,0.00016007,2]
[398913603,1765989040785,-182.50362026,0.00016106,2]
[398913604,1765989040795,-1408.53,0.00016115,2]
[398913605,1765989040805,-500.0,0.00016115,2]
[398913606,1765989040814,-500.0,0.00016115,6]
[398913607,1765989040824,-510.31,0.00016116,2]
[398913608,1765989040833,-150.99,0.00016116,2]
[398913609,1765989040843,-3822.44,0.00016116,2]
[398913610,1765989040852,-9999.99,0.00016116,2]
[398913611,1765989040861,-150.99,0.00016116,2]
[398913612,1765989040872,-29204.14,0.00016116,2]
[398913613,1765989040882,-999.99,0.00016116,2]
[398913614,1765989040892,-28635.52,0.00016116,2]
[398913615,1765989040903,-7648.35,0.00016116,2]
[398913616,1765989040913,-25642.6,0.00016116,2]
[398913617,1765989040924,-599.97707901,0.00016164,2]
[398913618,1765989040935,-1062.16,0.00016164,2]
[398913619,1765989040945,-127083.78788698,0.000162,5]
[398913620,1765989040956,-5218.08862732,0.00016255,2]
[398913621,1765989040966,-331.23,0.00016261,2]
[398913622,1765989040976,-277.0947455,0.0001627,2]
[398913623,1765989040986,-345.0,0.00016322,2]
[398913624,1765989040997,-189.0,0.00016354,2]
[398913625,1765989041007,-260.0,0.00016369,2]
[398913626,1765989041023,-166.66,0.00016433,2]
[398913627,1765989041033,-500.0,0.00016437,2]
[398913628,1765989041043,-300.0,0.00016438,2]
[398913629,1765989041053,-300.0,0.00016438,2]
[398913630,1765989041063,-300.0,0.00016438,2]
[398913631,1765989041074,-300.0,0.00016438,2]
[398913632,1765989041084,-300.0,0.00016438,2]
[398913633,1765989041093,-300.0,0.00016438,2]
[398913634,1765989041103,-300.0,0.00016438,2]
[398913635,1765989041112,-300.0,0.00016438,2]
[398913636,1765989041122,-300.0,0.00016438,2]
[398913637,1765989041132,-300.0,0.00016438,2]
[398913638,1765989041142,-300.0,0.00016438,2]
[398913639,1765989041151,-300.0,0.00016438,2]
[398913640,1765989041161,-300.0,0.00016438,2]
[398913641,1765989041171,-300.0,0.00016438,2]
[398913642,1765989041181,-300.0,0.00016438,2]
[398913643,1765989041191,-300.0,0.00016438,2]
[398913644,1765989041201,-300.0,0.00016438,2]
[398913645,1765989041211,-300.0,0.00016438,2]
[398913646,1765989041220,-300.0,0.00016438,2]
[398913647,1765989041234,-300.0,0.00016438,2]
[398913648,1765989041244,-300.0,0.00016438,2]
[398913649,1765989041254,-300.0,0.00016438,2]
[398913650,1765989041270,-197.26900433,0.00016438,2]
[398913651,1765989041280,-1062.16,0.00016438,2]
[398913652,1765989041290,-646.86714273,0.00016438,2]
[398913653,1765989041300,-646.86714273,0.00016438,2]
[398913654,1765989041310,-646.86714273,0.00016438,2]
[398913655,1765989041319,-646.86714273,0.00016438,2]
[398913656,1765989041329,-646.86714273,0.00016438,2]
[398913657,1765989041340,-646.86714273,0.00016438,2]
[398913658,1765989041350,-646.86714273,0.00016438,2]
[398913659,1765989041360,-646.86714273,0.00016438,2]
[398913660,1765989041370,-646.86714273,0.00016438,2]
[398913661,1765989041380,-646.86714273,0.00016438,2]
[398913662,1765989041392,-646.86714273,0.00016438,2]
[398913663,1765989041402,-646.86714273,0.00016438,2]
[398913664,1765989041411,-646.86714273,0.00016438,2]
[398913665,1765989041421,-646.86714273,0.00016438,2]
[398913666,1765989041435,-646.86714273,0.00016438,2]
[398913667,1765989041445,-646.86714273,0.00016438,2]
[398913669,1765989041455,-646.86714273,0.00016438,2]
[398913670,1765989041465,-646.86714273,0.00016438,2]
[398913671,1765989041475,-646.86714273,0.00016438,2]
[398913672,1765989041485,-646.86714273,0.00016438,2]
[398913674,1765989041494,-646.86714273,0.00016438,2]
[398913675,1765989041504,-646.86714273,0.00016438,2]
[398913676,1765989041520,-646.86714273,0.00016438,2]
[398913677,1765989041533,-646.86714273,0.00016438,2]
[398913678,1765989041543,-646.86714273,0.00016438,2]
[398913679,1765989041553,-646.86714273,0.00016438,2]
[398913680,1765989041564,-646.86714273,0.00016438,2]
[398913681,1765989041575,-646.86714273,0.00016438,2]
[398913682,1765989041585,-646.86714273,0.00016438,2]
[398913683,1765989041595,-646.86714273,0.00016438,2]
[398913684,1765989041608,-646.86714273,0.00016438,2]
[398913685,1765989041619,-646.86714273,0.00016438,2]
[398913686,1765989041629,-646.86714273,0.00016438,2]
[398913687,1765989041643,-646.86714273,0.00016438,2]
[398913688,1765989041653,-646.86714273,0.00016438,2]
[398913689,1765989041664,-646.86714273,0.00016438,2]
[398913690,1765989041675,-646.86714273,0.00016438,2]
[398913691,1765989041686,-646.86714273,0.00016438,2]
[398913692,1765989041696,-646.86714273,0.00016438,2]
[398913693,1765989041706,-646.86714273,0.00016438,2]
[398913694,1765989041716,-646.86714273,0.00016438,2]
[398913695,1765989041725,-646.86714273,0.00016438,2]
[398913696,1765989041735,-646.86714273,0.00016438,2]
[398913697,1765989041745,-646.86714273,0.00016438,2]
[398913698,1765989041754,-646.86714273,0.00016438,2]
[398913699,1765989041767,-646.86714273,0.00016438,2]
[398913700,1765989041777,-646.86714273,0.00016438,2]
[398913701,1765989041787,-633.92979987,0.00016438,2]
[398913702,1765989041796,-633.92979987,0.00016438,2]
[398913703,1765989041806,-633.92979987,0.00016438,2]
[398913704,1765989041816,-633.92979987,0.00016438,2]
[398913705,1765989041825,-633.92979987,0.00016438,2]
[398913706,1765989041835,-633.92979987,0.00016438,2]
[398913707,1765989041849,-633.92979987,0.00016438,2]
[398913708,1765989041859,-633.92979987,0.00016438,2]
[398913709,1765989041868,-633.92979987,0.00016438,2]
[398913710,1765989041878,-633.92979987,0.00016438,2]
[398913711,1765989041887,-633.92979987,0.00016438,2]
[398913712,1765989041896,-633.92979987,0.00016438,2]
[398913713,1765989041906,-633.92979987,0.00016438,2]
[398913714,1765989041916,-633.92979987,0.00016438,2]
[398913715,1765989041926,-633.92979987,0.00016438,2]
[398913716,1765989041936,-633.92979987,0.00016438,2]
[398913717,1765989041946,-633.92979987,0.00016438,2]
[398913718,1765989041955,-633.92979987,0.00016438,2]
[398913719,1765989041965,-633.92979987,0.00016438,2]
[398913720,1765989041975,-633.92979987,0.00016438,2]
[398913721,1765989041985,-633.92979987,0.00016438,2]
[398913722,1765989041995,-633.92979987,0.00016438,2]
[398913723,1765989042004,-633.92979987,0.00016438,2]
[398913724,1765989042016,-633.92979987,0.00016438,2]
[398913725,1765989042026,-633.92979987,0.00016438,2]
[398913726,1765989042038,-633.92979987,0.00016438,2]
[398913727,1765989042048,-633.92979987,0.00016438,2]
[398913728,1765989042058,-610.15743238,0.00016438,2]
[398913729,1765989042067,-610.15743238,0.00016438,2]
[398913730,1765989042077,-610.15743238,0.00016438,2]
[398913731,1765989042088,-610.15743238,0.00016438,2]
[398913732,1765989042098,-610.15743238,0.00016438,2]
[398913733,1765989042107,-610.15743238,0.00016438,2]
[398913734,1765989042117,-610.15743238,0.00016438,2]
[398913735,1765989042127,-610.15743238,0.00016438,2]
[398913736,1765989042136,-610.15743238,0.00016438,2]
[398913737,1765989042152,-610.15743238,0.00016438,2]
[398913738,1765989042161,-610.15743238,0.00016438,2]
[398913739,1765989042171,-610.15743238,0.00016438,2]
[398913740,1765989042180,-610.15743238,0.00016438,2]
[398913741,1765989042189,-610.15743238,0.00016438,2]
[398913742,1765989042199,-610.15743238,0.00016438,2]
[398913743,1765989042208,-610.15743238,0.00016438,2]
[398913744,1765989042218,-610.15743238,0.00016438,2]
[398913745,1765989042227,-610.15743238,0.00016438,2]
[398913746,1765989042237,-12722.2,0.00016438,2]
[398913747,1765989042246,-500.0,0.00016465,2]
[398913748,1765989042256,-5218.08862732,0.00016515,2]
[398913749,1765989042268,-223.14,0.00016596,2]
[398913750,1765989042277,-1062.1749234,0.00016712,2]
[398913751,1765989042287,-5218.08862732,0.00016775,2]
[398913752,1765989042297,-587.0,0.00016791,2]
[398913753,1765989042307,-634.47820322,0.000169,2]
[398913754,1765989042316,-236.9189482,0.000169,2]
[398913755,1765989042326,-1000.0,0.00016901,2]
[398913756,1765989042335,-500.0,0.00016921,2]
[398913757,1765989042345,-2351.0,0.00016927,2]
[398913758,1765989042355,-433.0,0.0001693,2]
[398913759,1765989042364,-166.66,0.00016958,2]
[398913760,1765989042373,-500.0,0.00016973,2]
[398913761,1765989042383,-500.0,0.00016973,2]
[398913762,1765989042392,-506.79331904,0.00016973,2]
[398913763,1765989042401,-379.34447673,0.00016973,2]
[398913764,1765989042411,-500.0,0.00016973,2]
[398913765,1765989042420,-300.33484235,0.00016973,2]
[398913766,1765989042438,-500.0,0.00016973,2]
[398913767,1765989042449,-500.0,0.00016973,2]
[398913768,1765989042459,-500.0,0.00016973,2]
[398913769,1765989042468,-500.0,0.00016986,2]
[398913770,1765989042478,-182.50362026,0.0001699,2]
[398913771,1765989042487,-182.50362026,0.0001699,2]
[398913772,1765989042496,-151.0,0.00016997,2]
[398913773,1765989042506,-300.0,0.00016999,2]
[398913774,1765989042517,-666.0,0.00016999,2]
[398913775,1765989042531,-250.0,0.00017,2]
[398913776,1765989042540,-3095845.02617014,0.00017,2]
[398913777,1765989042560,-3224.45902857,0.00017,2]
[398913778,1765989042573,-812.91206144,0.00017,2]
[398913779,1765989042585,-91291.70013394,0.00017,2]
[398913780,1765989042603,-402.10270143,0.00017,2]
[398913781,1765989042616,-1533.45385013,0.00017,2]
[398913782,1765989042628,-7144.48493671,0.00017,2]
[398913783,1765989042640,-10892.00591625,0.00017,2]
[398913784,1765989042651,-624.76481377,0.00017,2]
[398913785,1765989042663,-86500.0,0.00017,2]
[398913786,1765989042742,-1888.86574342,0.000159,2]
[398913787,1765989042752,-612.07814521,0.00017,2]
[398913788,1765989042770,-1790.09687237,0.00017,2]
[398913789,1765989042781,-2871.0,0.00017,2]
[398913790,1765989042793,-27508.82776326,0.00017,2]
[398913791,1765989042804,-479120.37586893,0.00017,2]
[398913792,1765989042819,-19337.93852497,0.00017,2]
[398913793,1765989042831,-959.79,0.00017,2]
[398913794,1765989042843,-429.90000018,0.00017,2]
[398913796,1765989042854,-1599.31574393,0.00017,2]
[398913798,1765989042866,-453.43290693,0.00017,2]
[398913800,1765989042877,-1791.46875,0.00017,2]
[398913802,1765989042889,-32460.18634,0.00017,2]
[398913803,1765989042900,-2595.50249069,0.00017,2]
[398913819,1765989043353,-277.0947455,0.00016585,2]
[398913820,1765989043363,-523.1031605,0.00017,2]
[398913821,1765989043422,-1634.74742386,0.00017,2]
[398913822,1765989043925,-324.598953,0.00017,2]
[398913823,1765989043944,-298.50596504,0.00017,2]
[398913824,1765989043957,-257.93483998,0.00017,2]
[398913825,1765989043974,-2871.0,0.00017,2]
[398913826,1765989043993,-701.688,0.00017,2]
[398913827,1765989044014,-645.84818087,0.00017,2]
[398913840,1765989046267,-10038.6794103,0.00017,2]
[398913841,1765989046309,-1073.91176786,0.00017,2]
[398913842,1765989046320,-3108.12461569,0.00017,2]
[398913843,1765989046332,-8719.4,0.00017,2]
[398913844,1765989046344,-14335.4,0.00017,2]
[398913845,1765989046355,-886.6337528,0.00017,2]
[398913849,1765989141266,500.0,0.00018,30]
[398913850,1765989142369,500.0,0.00017,30]
[398913854,1765989187993,-403.0,0.000177,5]
[398913881,1765990232051,-370.85293266,0.000139,2]
[398913882,1765990232063,-672.07581196,0.000139,2]
[398913883,1765990232073,-1600.0,0.0001394,2]
[398913884,1765990232082,-250.0,0.0001397,2]
[398913885,1765990232092,-300.0,0.00014,2]
[398913887,1765990232102,-1200.0,0.00014059,2]
[398913888,1765990232111,-887.99236862,0.0001406,2]
[398913889,1765990232123,-312.00763138,0.0001406,2]
[398913890,1765990232132,-300.0,0.0001406,2]
[398913891,1765990232142,-16103.13550927,0.00014061,2]
[398913892,1765990232153,-2354.41449073,0.00014061,2]
[398913893,1765990232163,-300.0,0.00014086,2]
[398913894,1765990232172,-300.0,0.00014086,2]
[398913895,1765990232181,-300.0,0.00014086,2]
[398913896,1765990232190,-765.10748044,0.00014106,2]
[398913897,1765990232201,-665.86849656,0.00014106,2]
[398913898,1765990232214,-8707.5,0.00014106,2]
[398913899,1765990232226,-999.0,0.00014106,2]
[398913900,1765990232241,-784.35150967,0.00014106,2]
[398913901,1765990232257,-394.45008645,0.00014106,2]
[398913902,1765990232270,-286.96095259,0.00014106,2]
[398913903,1765990232281,-2648.80878799,0.00014106,2]
[398913904,1765990232293,-2488.79487899,0.00014106,2]
[398913905,1765990232305,-489.40032909,0.00014106,2]
[398913906,1765990232316,-305.85181942,0.00014106,2]
[398913908,1765990232332,-2602.86816267,0.00014106,2]
[398913910,1765990232343,-1377.93241419,0.00014106,2]
[398913913,1765990232354,-1060.92531021,0.00014106,2]
[398913973,1765990238308,-98505.95977173,0.00014106,2]
[398913974,1765990238318,-1500.0,0.00014148,2]
[398913975,1765990238328,-2207.169,0.00014224,2]
[398913976,1765990238338,-176.504,0.00014224,2]
[398913977,1765990238348,-150.0,0.00014427,2]
[398913978,1765990238357,-8184.87901493,0.00014428,2]
[398913979,1765990238367,-14003.84472735,0.00014428,2]
[398913980,1765990238377,-1046.42,0.00014506,2]
[398913981,1765990238387,-500.0,0.00014506,2]
[398913983,1765990238397,-200.0,0.00014506,2]
[398913985,1765990238406,-500.0,0.00014506,2]
[398913987,1765990238415,-500.0,0.00014506,2]
[398913989,1765990238425,-500.0,0.00014506,2]
[398913990,1765990238434,-500.0,0.00014506,2]
[398913992,1765990238444,-500.0,0.00014506,2]
[398913994,1765990238454,-500.0,0.00014506,2]
[398913995,1765990238463,-500.0,0.00014506,2]
[398913996,1765990238476,-500.0,0.00014506,2]
[398913997,1765990238485,-500.0,0.00014506,2]
[398913998,1765990238494,-500.0,0.00014506,2]
[398913999,1765990238504,-500.0,0.00014506,2]
[398914000,1765990238513,-334.2636125,0.00014506,2]
[398914001,1765990238522,-500.0,0.00014506,2]
[398914002,1765990238532,-500.0,0.00014506,2]
[398914004,1765990238541,-500.0,0.00014506,2]
[398914006,1765990238551,-200.0,0.00014506,2]
[398914007,1765990238560,-500.0,0.00014506,2]
[398914010,1765990238569,-500.0,0.00014506,2]
[398914012,1765990238579,-200.0,0.00014506,2]
[398914014,1765990238590,-500.0,0.00014506,2]
[398914017,1765990238599,-500.0,0.00014506,2]
[398914020,1765990238608,-500.0,0.00014506,2]
[398914023,1765990238618,-500.0,0.00014506,2]
[398914025,1765990238628,-500.0,0.00014506,2]
[398914027,1765990238638,-151.0,0.00014506,2]